bitfinex-derivatives/quotes_ETHF0:USTF0_20251005
["timestamp","ask_amount","ask_price","bid_price","bid_amount"]
[1759696543948,0.2106,4503.3,4503.2,0.9717]
[1759696544143,3.2078,4503.5,4503.3,0.3399]
[1759696544350,3.2078,4503.5,4503.4,0.7618]
[1759696544549,3.91317362,4503.5,4503.4,0.7618]
[1759696544751,4.59077362,4503.5,4503.4,0.2618]
[1759696544944,4.59077362,4503.5,4503.4,0.4755]
[1759696545450,3.7487,4503.5,4503.4,0.4219]
[1759696546038,4.0923,4503.5,4503.4,0.4219]
[1759696550556,3.7583,4503.5,4503.3,1.00394392]
[1759696550851,0.7563,4503.4,4503.3,1.21854392]
[1759696551644,0.7563,4503.4,4503.3,1.76754392]
[1759696551847,0.3224,4503.8,4503.7,0.82828]
[1759696552049,0.3224,4503.8,4503.7,2.39012392]
[1759696552645,0.7563,4503.8,4503.7,0.223]
[1759696554050,0.7563,4503.8,4503.7,0.4376]
[1759696555552,0.7563,4503.8,4503.7,0.2146]
[1759696555752,0.7563,4503.8,4503.7,0.4376]
[1759696556957,0.7563,4503.8,4503.7,0.6517]
[1759696558152,0.3224,4503.8,4503.7,0.9866]
[1759696558353,3.2078,4504.0,4503.9,0.7636]
[1759696558557,3.753,4504.0,4503.9,1.76754392]
[1759696558858,3.8807,4504.0,4503.9,1.76754392]
[1759696559652,4.0918,4504.0,4503.9,1.76754392]
[1759696560459,0.5452,4504.0,4503.9,2.16711392]
[1759696560960,0.5452,4504.0,4503.9,1.76754392]
[1759696561359,0.6729,4504.0,4503.9,1.76754392]
[1759696561754,0.884,4504.0,4503.9,0.2146]
[1759696561958,0.3224,4503.6,4503.5,3.2078]
[1759696562149,0.7563,4503.6,4503.5,0.223]
[1759696563161,0.7563,4503.6,4503.5,1.22694392]
[1759696563661,0.7563,4503.2,4503.1,0.61423]
[1759696563852,0.7563,4503.2,4503.1,1.84117392]
[1759696564054,0.7563,4503.2,4503.1,2.39017392]
[1759696564762,0.3224,4503.2,4503.1,2.39017392]
[1759696566172,0.1277,4503.5,4503.4,0.39961]
[1759696566471,0.3505,4503.5,4503.4,2.39015392]
[1759696566869,0.6729,4503.5,4503.4,2.39015392]
[1759696568569,0.5452,4503.5,4503.4,2.39015392]
[1759696569765,0.7563,4503.9,4503.8,0.7636]
[1759696569964,0.7563,4503.9,4503.8,1.99054392]
[1759696570164,0.7563,4503.9,4503.8,1.22694392]
[1759696571968,0.3224,4503.9,4503.8,1.22694392]
[1759696573666,0.33983294,4504.5,4503.8,1.22694392]
[1759696573864,0.33983294,4504.5,4504.4,1.40346392]
[1759696574169,0.66223294,4504.5,4504.4,1.62646392]
[1759696574766,0.87333294,4504.5,4504.4,1.62646392]
[1759696575171,0.87333294,4504.5,4504.4,1.82691448]
[1759696575474,0.00243294,4504.5,4504.4,1.82691448]
[1759696577375,0.00243294,4504.5,4504.4,3.62159636]
[1759696577876,0.31223294,4504.5,4504.4,3.62159636]
[1759696578075,0.31223294,4504.5,4504.4,1.82691448]
[1759696579578,0.65383294,4504.5,4504.4,1.82691448]
[1759696580078,0.43613294,4504.5,4504.4,3.61733557]
[1759696580574,0.43613294,4504.5,4504.4,8.39433557]
[1759696580575,0.00243294,4504.5,4504.4,8.39433557]
[1759696580776,0.00243294,4504.5,4504.4,8.61733557]
[1759696581077,0.31223294,4504.5,4504.4,8.61733557]
[1759696581672,0.00243294,4504.5,4504.4,8.61733557]
[1759696582779,0.31223294,4504.5,4504.4,8.61733557]
[1759696583980,0.1277,4506.0,4505.0,0.2061]
[1759696583981,3.2078,4505.9,4505.0,0.2061]
[1759696584178,0.4334,4505.8,4505.7,0.4409]
[1759696584377,0.4334,4505.8,4505.7,0.4505]
[1759696584872,0.4334,4505.8,4505.7,0.45296306]
[1759696585182,0.2200852,4505.8,4505.7,0.87246306]
[1759696585483,0.2200852,4505.8,4505.7,1.05204333]
[1759696586086,0.5298852,4505.8,4505.7,1.05204333]
[1759696586378,0.0023852,4505.8,4505.7,1.05204333]
[1759696587185,0.3121852,4505.8,4505.7,1.05204333]
[1759696588188,0.0023852,4505.8,4505.7,1.05204333]
[1759696589388,0.3121852,4505.8,4505.7,1.05204333]
[1759696590587,0.0023852,4505.8,4505.7,1.05204333]
[1759696591185,5.2e-06,4505.8,4505.7,1.05204333]
[1759696592490,0.309,4506.6,4506.5,0.6488]
[1759696592683,0.309,4506.6,4506.5,2.07619448]
[1759696593592,0.00222769,4506.6,4506.5,2.07619448]
[1759696593993,0.21202769,4506.6,4506.5,2.07619448]
[1759696594592,0.53662769,4506.6,4506.5,2.07619448]
[1759696596790,0.32682769,4506.6,4506.5,2.07619448]
[1759696596998,0.53662769,4506.6,4506.5,2.07619448]
[1759696598196,0.53662769,4506.6,4506.5,1.86939448]
[1759696598791,0.00222769,4506.6,4506.5,1.85319448]
[1759696598996,0.53662769,4506.6,4506.5,1.86939448]
[1759696599393,0.53662769,4506.6,4506.5,2.07619448]
[1759696600091,0.53762769,4506.6,4506.5,2.07619448]
[1759696600593,0.53762769,4506.6,4506.5,1.85319448]
[1759696600792,0.53762769,4506.6,4506.5,2.07619448]
[1759696602197,0.75402769,4506.6,4506.5,1.86939448]
[1759696602397,0.75402769,4506.6,4506.5,2.07619448]
[1759696604100,0.75402769,4506.6,4506.5,5.28399448]
[1759696604495,0.53762769,4506.6,4506.5,5.28399448]
[1759696605201,0.75402769,4506.6,4506.5,5.07719448]
[1759696605497,0.75402769,4506.6,4506.5,5.28399448]
[1759696605899,0.32782769,4506.6,4506.5,5.28399448]
[1759696610104,0.00322769,4506.6,4506.5,5.28399448]
[1759696610405,0.34232769,4506.6,4506.5,5.28399448]
[1759696611999,0.56072769,4506.6,4506.5,5.28399448]
[1759696612500,0.00322769,4506.6,4506.5,5.28399448]
[1759696613004,0.34232769,4506.6,4506.5,5.28399448]
[1759696614210,0.00322769,4506.6,4506.5,5.28399448]
[1759696614403,0.00322769,4506.6,4506.5,5.06099448]
[1759696614608,0.00322769,4506.6,4506.5,5.28399448]
[1759696614609,0.34232769,4506.6,4506.5,5.28399448]
[1759696615110,0.34232769,4506.6,4506.5,5.06099448]
[1759696615307,0.00322769,4506.6,4506.5,5.28399448]
[1759696615611,0.34232769,4506.6,4506.5,5.28399448]
[1759696617609,3.2078,4507.7,4506.5,5.28399448]
[1759696617610,3.2078,4507.7,4507.0,1.99646]
[1759696617815,0.2184,4508.0,4507.9,0.4229]
[1759696618004,0.5667,4508.5,4508.4,0.61677]
[1759696618200,0.5683,4508.5,4508.4,0.61677]
[1759696618504,0.5683,4508.5,4508.4,0.62217]
[1759696618699,0.57085641,4508.5,4508.4,0.62217]
[1759696619110,0.57085641,4508.5,4508.4,0.83977]
[1759696619305,0.57085641,4508.5,4508.4,1.17017]
[1759696619713,0.90995641,4508.5,4508.4,1.17017]
[1759696619914,0.90995641,4508.5,4508.4,1.37547]
[1759696621915,0.90995641,4508.5,4508.4,0.82207]
[1759696622215,0.90995641,4508.5,4508.4,1.04507]
[1759696622715,0.90995641,4508.5,4508.4,0.83977]
[1759696623317,0.77975641,4508.5,4508.4,1.37547]
[1759696623521,3.5469,4509.8,4509.7,0.7533]
[1759696623716,0.5575,4509.8,4509.7,2.18069448]
[1759696623911,0.5575,4510.0,4509.9,0.7533]
[1759696624115,0.5575,4510.0,4509.9,0.9763]
[1759696624315,0.3391,4510.3,4510.2,1.15231]
[1759696624618,0.7772,4510.7,4510.6,1.15227]
[1759696624919,0.7772,4510.7,4510.6,0.9763]
[1759696624920,0.77879239,4510.7,4510.6,0.9763]
[1759696625111,0.56039239,4510.7,4510.6,0.9763]
[1759696625310,0.5683,4510.5,4510.4,0.61659]
[1759696625510,0.9074,4510.5,4510.4,0.83959]
[1759696625813,9.1152,4510.5,4510.2,0.0019114]
[1759696626014,9.1152,4510.5,4510.3,0.223]
[1759696626815,9.1152,4510.5,4510.4,0.223]
[1759696627016,9.51419,4510.5,4510.4,0.223]
[1759696627219,9.1152,4510.5,4510.4,0.223]
[1759696628220,9.1152,4510.5,4510.2,0.0019114]
[1759696628514,0.399,4510.4,4510.2,0.0019114]
[1759696628820,0.7772,4510.3,4510.2,0.0019114]
[1759696629018,0.7772,4510.3,4510.2,0.2249114]
[1759696629220,0.7772,4510.3,4510.2,0.0019114]
[1759696629417,0.7772,4510.3,4510.2,0.2249114]
[1759696629621,0.7772,4510.3,4510.2,0.0019114]
[1759696629815,0.7772,4510.3,4510.2,0.2249114]
[1759696631118,0.7772,4510.3,4510.2,0.9782114]
[1759696631321,0.5575,4510.3,4510.2,0.9782114]
[1759696631522,0.3391,4510.6,4510.2,0.9782114]
[1759696631823,0.5575,4510.6,4510.5,0.2176]
[1759696632024,0.5575,4510.6,4510.5,1.15228]
[1759696632218,0.00159239,4510.7,4510.6,0.7533]
[1759696632520,0.77879239,4510.7,4510.6,1.37527]
[1759696633520,0.77879239,4510.7,4510.6,1.15227]
[1759696633723,0.77879239,4510.7,4510.6,1.37527]
[1759696634226,0.55909239,4510.7,4510.6,1.37527]
[1759696634428,0.77879239,4510.7,4510.6,0.4229]
[1759696634724,0.77879239,4510.7,4510.6,0.4406]
[1759696635224,0.77879239,4510.7,4510.6,0.771]
[1759696635427,0.77879239,4510.7,4510.6,0.9763]
[1759696636221,0.00159239,4510.7,4510.6,0.9763]
[1759696637028,0.00159239,4510.7,4510.6,1.97720943]
[1759696637934,1.18463274,4513.3,4510.6,1.97720943]
[1759696637935,0.7757,4511.6,4511.5,1.16009]
[1759696638127,0.7757,4511.6,4511.5,0.9842]
[1759696638927,0.77776653,4511.6,4511.5,0.9842]
[1759696643031,0.77776653,4511.6,4511.5,0.7612]
[1759696643235,0.77776653,4511.6,4511.5,0.4386]
[1759696643631,0.39889,4511.5,4511.3,3.2078]
[1759696643832,1.29969,4511.5,4511.2,0.3288]
[1759696644042,1.29969,4511.5,4511.4,0.2156]
[1759696644230,0.9008,4511.5,4511.4,0.2156]
[1759696645933,0.9008,4511.5,4511.4,0.4386]
[1759696647132,0.9008,4511.5,4511.4,0.7674]
[1759696648140,0.9008,4511.5,4511.4,0.9842]
[1759696648341,0.5645,4511.5,4511.4,0.9842]
[1759696649332,0.7757,4511.5,4511.4,0.9842]
[1759696652741,0.7757,4511.5,4511.4,0.7612]
[1759696652942,0.7757,4511.5,4511.4,0.9842]
[1759696654237,0.9005,4511.5,4511.4,0.9842]
[1759696654741,0.9005,4511.5,4511.2,1.00090943]
[1759696654742,0.3076,4511.4,4510.9,3.5239]
[1759696655038,1.27124,4511.0,4510.9,3.739]
[1759696655237,1.27124,4511.0,4510.9,3.962]
[1759696655437,1.27124,4511.0,4510.9,4.1755]
[1759696655838,1.27124,4511.0,4510.9,3.4229]
[1759696656046,1.27124,4511.0,4510.9,3.6459]
[1759696656744,1.27124,4511.0,4510.9,3.4229]
[1759696657048,0.8723,4511.0,4510.9,5.17640943]
[1759696657243,0.8723,4511.0,4510.9,4.1755]
[1759696657847,0.8723,4511.0,4510.9,3.9525]
[1759696658048,0.8723,4511.0,4510.9,4.1755]
[1759696662155,0.8723,4511.0,4510.9,3.9525]
[1759696662360,0.8723,4511.0,4510.9,4.1755]
[1759696663056,0.7475,4511.0,4510.9,4.1755]
[1759696664657,0.8723,4511.0,4510.9,3.6364]
[1759696664855,0.8723,4511.0,4510.9,3.8594]
[1759696665652,0.8723,4511.0,4510.9,3.6364]
[1759696665854,0.4399,4510.8,4510.7,0.5312]
[1759696666051,0.7475,4510.8,4510.7,0.7542]
[1759696667360,0.7475,4510.8,4510.7,0.4381]
[1759696667557,0.7475,4510.8,4510.7,0.7486]
[1759696669259,0.7873,4510.3,4510.2,0.2228114]
[1759696669464,2.18720943,4510.3,4510.2,0.4458114]
[1759696669665,1.1863,4510.3,4510.2,0.4458114]
[1759696670558,1.1863,4510.3,4510.2,0.2228114]
[1759696670754,1.1863,4510.3,4510.2,0.4458114]
[1759696670958,1.1863,4510.3,4510.2,0.2228114]
[1759696671160,1.1863,4510.3,4510.2,0.4458114]
[1759696671458,1.1863,4510.3,4510.2,0.9709114]
[1759696673169,0.96216,4510.8,4510.7,0.746]
[1759696673366,0.96216,4510.8,4510.7,0.969]
[1759696673763,0.5632,4510.8,4510.7,0.969]
[1759696673963,0.62572,4511.2,4511.1,0.4355]
[1759696674260,0.96212,4511.2,4511.1,0.969]
[1759696674668,1.18622,4511.2,4511.1,0.969]
[1759696678370,1.18622,4511.2,4511.1,0.223]
[1759696678575,0.399,4510.3,4510.2,0.0019114]
[1759696678776,1.1863,4510.3,4510.2,0.9709114]
[1759696679876,0.5632,4510.3,4510.2,0.9709114]
[1759696680878,0.5632,4510.3,4510.2,0.7479114]
[1759696681077,0.5632,4510.3,4510.2,0.9709114]
[1759696681277,0.7873,4510.3,4510.2,0.9709114]
[1759696681666,1.78820943,4510.3,4510.2,0.0019114]
[1759696681873,0.9116,4509.5,4509.4,0.5314]
[1759696682078,1.18639,4509.3,4509.2,3.4287]
[1759696682279,1.18639,4509.3,4509.2,3.6517]
[1759696682478,1.18639,4509.3,4509.2,3.2078]
[1759696682778,1.18639,4509.3,4509.2,3.4308]
[1759696683074,1.18639,4509.3,4509.2,3.43336184]
[1759696683275,1.18639,4509.3,4509.2,3.65426184]
[1759696683579,1.18639,4509.3,4509.2,3.21036184]
[1759696683972,1.18639,4509.3,4508.5,3.6433]
[1759696683973,1.18645,4508.6,4508.5,3.6433]
[1759696684178,1.18645,4508.6,4508.5,4.1768]
[1759696684679,0.7873,4508.6,4508.5,4.1768]
[1759696684980,0.5632,4508.6,4508.5,4.17909575]
[1759696685571,0.5632,4508.6,4508.5,3.67909575]
[1759696685772,0.7873,4508.6,4508.5,3.45609575]
[1759696685968,0.7873,4508.6,4508.5,3.67909575]
[1759696689682,0.7873,4508.6,4508.5,0.66079575]
[1759696689979,0.7873,4508.6,4508.5,0.97129575]
[1759696691989,0.7873,4508.6,4508.5,0.74829575]
[1759696692180,0.7873,4508.6,4508.5,0.97129575]
[1759696692583,0.39915,4508.7,4508.5,0.97129575]
[1759696692584,0.3364,4509.4,4509.3,0.2146]
[1759696692787,0.3364,4509.4,4509.3,0.6585]
[1759696692788,0.5632,4509.4,4509.3,0.6585]
[1759696692985,1.00090943,4510.1,4509.3,0.6585]
[1759696692986,0.39907,4509.5,4509.3,0.6585]
[1759696693178,0.96223,4509.9,4509.8,0.2209]
[1759696693382,0.3364,4509.9,4509.8,0.969]
[1759696693584,3.2078,4510.4,4510.2,0.746]
[1759696693585,0.7873,4510.3,4510.2,0.746]
[1759696693787,1.1863,4510.3,4510.2,0.969]
[1759696694877,1.1863,4510.3,4509.7,3.2078]
[1759696694878,0.7873,4509.8,4509.4,0.3105]
[1759696695188,0.7873,4509.7,4509.6,0.746]
[1759696695778,1.18635,4509.7,4509.6,0.4355]
[1759696699080,1.18635,4509.7,4509.6,0.6585]
[1759696699583,1.18635,4509.7,4509.6,0.2209]
[1759696699779,0.7708,4509.3,4509.2,0.2053]
[1759696699984,0.1242,4509.5,4509.0,0.3358]
[1759696699985,1.16991,4509.1,4509.0,0.2053]
[1759696700197,0.39909,4509.4,4509.0,0.9824]
[1759696700393,0.3403,4509.8,4509.1,0.3358]
[1759696700696,1.16989,4509.4,4509.3,0.7594]
[1759696700884,1.16989,4509.4,4509.3,0.9824]
[1759696702888,0.7708,4509.4,4509.3,0.9824]
[1759696707597,0.7708,4509.4,4509.3,0.6466]
[1759696708602,0.7708,4509.4,4509.3,0.7594]
[1759696708799,0.7708,4509.4,4509.3,0.6466]
[1759696710102,0.7708,4509.4,4509.3,0.9824]
[1759696710703,0.7708,4509.4,4509.3,0.7594]
[1759696710904,0.7708,4509.4,4509.3,0.9824]
[1759696715313,0.2063,4508.8,4508.7,0.3263]
[1759696715515,0.5219,4508.8,4508.7,0.9812]
[1759696715817,0.3156,4508.8,4508.7,0.9812]
[1759696716108,0.5219,4509.1,4509.0,0.4319]
[1759696716314,0.5219,4509.1,4509.0,0.9812]
[1759696716706,0.7303,4509.1,4509.0,0.9812]
[1759696720120,0.7303,4509.1,4509.0,0.7582]
[1759696720316,0.7303,4509.1,4509.0,0.9812]
[1759696721714,0.7303,4509.1,4509.0,0.6549]
[1759696722528,0.7303,4509.1,4509.0,0.9812]
[1759696723223,0.7303,4508.6,4508.5,2.1312013]
[1759696723517,0.7303,4508.6,4508.5,0.43999575]
[1759696723722,0.7303,4508.6,4508.5,0.98349575]
[1759696724119,0.7303,4508.6,4508.5,0.65719575]
[1759696724426,0.7303,4508.6,4508.5,0.21699575]
[1759696724720,0.7303,4508.6,4508.5,0.43999575]
[1759696727222,0.7303,4508.2,4508.1,1.80510555]
[1759696727526,0.7303,4508.2,4508.1,2.01980555]
[1759696727726,0.7303,4508.2,4508.1,2.24280555]
[1759696727925,0.7303,4508.2,4508.1,0.4319]
[1759696728124,0.73255018,4508.2,4508.1,0.65762756]
[1759696731123,0.73255018,4508.2,4508.1,0.43462756]
[1759696731626,0.73255018,4508.2,4508.1,0.00272756]
[1759696731926,0.73255018,4508.2,4507.8,3.2078]
[1759696731927,0.7545,4507.9,4507.8,3.2078]
[1759696732128,0.7545,4507.9,4507.8,3.4298]
[1759696732428,0.7545,4507.9,4507.8,3.657]
[1759696732818,0.7545,4507.9,4507.8,3.65924907]
[1759696733023,0.7545,4507.9,4507.8,4.18884907]
[1759696734027,0.3147,4507.9,4507.8,4.18884907]
[1759696734222,0.00225018,4508.2,4508.1,0.4341]
[1759696734426,0.00225018,4508.2,4508.1,0.9798]
[1759696736129,0.53045018,4508.2,4508.1,0.9798]
[1759696736331,0.00225018,4508.2,4508.1,2.18177422]
[1759696736831,0.31695018,4508.2,4508.1,0.9798]
[1759696737031,0.00225018,4508.2,4508.1,0.9798]
[1759696738130,0.31695018,4508.2,4508.1,0.9798]
[1759696738330,0.00225018,4508.2,4508.1,0.9798]
[1759696740437,0.31695018,4508.2,4508.1,0.9798]
[1759696740734,0.53045018,4508.2,4508.1,0.9798]
[1759696741032,0.00225018,4508.2,4508.1,0.9798]
[1759696741737,0.53045018,4508.2,4508.1,0.7568]
[1759696741929,0.53045018,4508.2,4508.1,0.9798]
[1759696744134,0.00225018,4508.2,4508.1,0.9798]
[1759696745437,0.31695018,4508.2,4508.1,0.7568]
[1759696745638,0.31695018,4508.2,4508.1,0.9798]
[1759696746835,0.75675018,4508.2,4508.1,0.9798]
[1759696747036,0.75675018,4508.2,4508.1,0.4502]
[1759696748036,0.7545,4507.9,4507.8,3.21004907]
[1759696748339,0.7545,4507.9,4507.8,3.66024907]
[1759696748530,0.7545,4507.9,4507.8,4.18984907]
[1759696748933,0.5282,4507.9,4507.8,4.18984907]
[1759696749440,0.00225018,4508.2,4507.9,0.3227]
[1759696749628,0.7545,4508.1,4508.0,0.2272]
[1759696749832,0.7545,4507.9,4507.8,3.43724907]
[1759696750032,0.7545,4507.9,4507.8,3.66024907]
[1759696750741,0.7545,4507.9,4507.8,3.21004907]
[1759696750935,0.7545,4507.9,4507.8,3.43304907]
[1759696751132,0.7545,4507.9,4507.8,3.86714907]
[1759696751335,0.7545,4507.9,4507.8,4.18984907]
[1759696751336,0.5282,4507.9,4507.8,4.18984907]
[1759696752736,0.40144018,4508.2,4508.0,0.4341]
[1759696752737,0.00225018,4508.2,4508.0,0.4341]
[1759696752939,0.00225018,4508.2,4508.1,0.9798]
[1759696753142,0.00225018,4508.2,4508.1,1.37899]
[1759696757244,0.00225018,4508.2,4508.1,2.38086256]
[1759696758140,0.3316,4509.0,4508.9,0.7435]
[1759696758344,0.3316,4509.0,4508.9,5.17617256]
[1759696759048,0.33391286,4509.0,4508.9,5.17617256]
[1759696759447,0.00231286,4509.0,4508.9,5.17617256]
[1759696760447,0.33391286,4509.0,4508.9,5.17617256]
[1759696762548,0.56121286,4509.0,4508.9,5.17617256]
[1759696762849,0.68511286,4509.0,4508.9,5.17617256]
[1759696763146,0.68511286,4509.0,4508.9,4.63967256]
[1759696763147,0.90131286,4509.0,4508.9,4.63967256]
[1759696763351,0.7751,4508.6,4508.5,1.80607593]
[1759696763648,0.7751,4508.6,4508.5,0.9665]
[1759696764352,0.35351286,4509.0,4508.9,0.7435]
[1759696764647,0.56971286,4509.0,4508.9,0.223]
[1759696764951,0.90131286,4509.0,4508.9,0.4453]
[1759696765150,0.90131286,4509.0,4508.9,0.653]
[1759696765650,0.90131286,4509.0,4508.9,0.9665]
[1759696765851,0.90131286,4509.0,4508.9,4.1743]
[1759696766948,0.33391286,4509.0,4508.9,4.1743]
[1759696767153,0.00231286,4509.0,4508.9,4.95317256]
[1759696767351,0.00231286,4509.0,4508.9,5.17617256]
[1759696767352,0.33391286,4509.0,4508.9,5.17617256]
[1759696770448,0.56121286,4509.0,4508.9,4.95317256]
[1759696770854,0.33391286,4509.0,4508.9,5.17617256]
[1759696771755,0.56121286,4509.0,4508.9,5.17617256]
[1759696771960,0.68511286,4509.0,4508.9,5.17617256]
[1759696772457,0.56121286,4509.0,4508.9,5.17617256]
[1759696773551,0.89901286,4509.0,4508.9,5.17617256]
[1759696773759,0.89901286,4509.0,4508.9,4.1743]
[1759696774556,0.89901286,4509.0,4508.9,3.8608]
[1759696775757,0.89901286,4509.0,4508.9,4.1889]
[1759696776459,0.89901286,4509.0,4508.9,0.9811]
[1759696777352,0.69331286,4509.0,4508.9,0.9811]
[1759696778857,0.89901286,4509.0,4508.9,0.7581]
[1759696779050,0.89901286,4509.0,4508.9,0.9811]
[1759696780061,0.69331286,4509.0,4508.9,0.9811]
[1759696786262,0.96653286,4509.0,4508.7,4.79157593]
[1759696786467,1.12333,4508.9,4508.8,0.222]
[1759696788060,0.7242,4508.9,4508.8,0.4281]
[1759696788364,0.5185,4508.9,4508.8,0.9645]
[1759696788868,0.7373,4508.9,4508.8,0.9645]
[1759696789665,0.7373,4508.9,4508.8,0.6363]
[1759696795970,0.7373,4508.9,4508.8,0.9645]
[1759696797165,0.27082286,4509.1,4509.0,0.3352]
[1759696797370,0.70672286,4509.1,4509.0,0.8863]
[1759696798172,0.70869885,4509.1,4509.0,0.8863]
[1759696798572,0.70869885,4509.1,4509.0,1.0945]
[1759696798773,0.70869885,4509.1,4509.0,0.8725]
[1759696798972,0.70869885,4509.1,4509.0,1.0945]
[1759696799472,0.70869885,4509.1,4509.0,0.8725]
[1759696799672,0.70869885,4509.1,4509.0,1.0945]
[1759696799872,0.87639885,4509.1,4509.0,1.0945]
[1759696800270,0.87639885,4509.1,4509.0,0.222]
[1759696800870,1.17284,4508.7,4508.6,3.6221]
[1759696801068,1.17284,4508.7,4508.6,3.8441]
[1759696801667,1.17284,4508.7,4508.6,3.6221]
[1759696801863,1.17284,4508.7,4508.6,3.8441]
[1759696802074,0.7737,4508.7,4508.6,3.8441]
[1759696802471,0.7737,4508.7,4508.6,3.9512]
[1759696802672,0.7737,4508.7,4508.6,4.1732]
[1759696806576,1.77557256,4508.7,4508.6,3.2078]
[1759696806880,1.77557256,4508.7,4508.6,3.4298]
[1759696807879,1.77557256,4508.7,4508.6,2.9298]
[1759696808272,1.77557256,4508.7,4508.6,3.465]
[1759696809273,0.55687599,4509.1,4509.0,0.8725]
[1759696809473,0.55687599,4509.1,4509.0,1.0945]
[1759696811579,0.77567599,4509.1,4509.0,1.0945]
[1759696812176,0.77567599,4509.1,4509.0,0.9654]
[1759696813177,0.77567599,4509.1,4509.0,0.7434]
[1759696813378,0.77567599,4509.1,4509.0,0.9654]
[1759696819377,0.00197599,4509.1,4509.0,1.0913]
[1759696825885,0.00197599,4509.1,4509.0,0.8693]
[1759696826192,0.76947599,4509.1,4509.0,1.0913]
[1759696826593,0.21167599,4509.1,4509.0,1.0913]
[1759696826794,0.00197599,4509.1,4509.0,1.0913]
[1759696827590,0.3388,4510.1,4510.0,0.1259]
[1759696827790,0.5485,4510.1,4510.0,1.1283]
[1759696828584,0.55014753,4510.1,4510.0,1.1283]
[1759696829499,0.76914753,4510.1,4510.0,1.1283]
[1759696832293,0.00164753,4510.1,4510.0,1.1283]
[1759696833797,0.53634753,4510.1,4510.0,1.1283]
[1759696837197,0.133,4510.0,4509.5,0.3272]
[1759696837402,1.28372,4509.0,4508.9,0.3272]
[1759696837595,1.28372,4509.0,4508.9,0.223]
[1759696837900,0.39914,4508.7,4508.5,0.1291]
[1759696838095,0.93384,4508.7,4508.6,0.763]
[1759696838496,0.93384,4508.7,4508.6,0.986]
[1759696838695,0.39916,4508.5,4508.4,3.2078]
[1759696838900,1.15076,4508.5,4508.4,4.1938]
[1759696840696,1.15076,4508.5,4508.4,0.986]
[1759696842807,1.15076,4508.5,4508.4,0.763]
[1759696843004,1.15076,4508.5,4508.4,0.986]
[1759696845811,0.3275,4508.8,4508.4,0.986]
[1759696846007,0.93385,4508.7,4508.6,0.5511]
[1759696846309,0.93385,4508.7,4508.6,0.763]
[1759696849008,1.15075,4508.7,4508.6,0.5391]
[1759696849205,1.15075,4508.7,4508.6,0.4349]
[1759696849708,1.15075,4508.7,4508.6,0.9702]
[1759696851417,1.15075,4508.7,4508.2,0.7449]
[1759696851418,1.15578,4508.3,4508.2,0.7449]
[1759696851612,1.15578,4508.3,4508.2,0.9679]
[1759696853715,0.39919,4508.1,4508.0,3.5341]
[1759696853907,1.15579,4508.1,4508.0,3.9667]
[1759696854112,1.15579,4508.1,4508.0,4.1757]
[1759696854614,1.15579,4508.1,4507.8,0.00224907]
[1759696854615,0.62141,4507.9,4507.8,0.53814907]
[1759696854807,1.15581,4507.9,4507.8,0.76114907]
[1759696855014,1.15581,4507.9,4507.8,0.97014907]
[1759696859218,1.15581,4507.9,4507.8,0.53814907]
[1759696859515,1.15581,4507.9,4507.8,0.76114907]
[1759696859716,1.15581,4507.9,4507.8,0.97014907]
[1759696862720,1.15581,4507.9,4507.8,0.223]
[1759696863713,0.39923,4507.7,4507.2,1.78238934]
[1759696863916,1.15583,4507.7,4507.6,0.2096]
[1759696866017,1.15587,4507.3,4507.2,0.21237894]
[1759696866212,0.7566,4507.3,4507.2,0.84407894]
[1759696866416,0.5436,4507.3,4507.2,0.84407894]
[1759696867416,0.7566,4507.3,4507.2,0.00277894]
[1759696867621,1.95890562,4507.3,4507.2,0.00277894]
[1759696867821,1.95890562,4507.3,4507.2,0.22577894]
[1759696868028,0.7566,4507.3,4507.2,0.22577894]
[1759696869222,0.7566,4507.3,4507.2,0.00277894]
[1759696869416,1.15593,4506.6,4506.5,0.2096]
[1759696869621,1.15593,4506.6,4506.5,0.4326]
[1759696869926,1.15593,4506.6,4506.5,0.223]
[1759696870327,1.15750034,4506.6,4506.5,0.22551446]
[1759696871322,1.15750034,4506.6,4506.5,4.46e-06]
[1759696871622,1.15750034,4506.6,4505.5,0.1997]
[1759696871623,0.7566,4505.6,4505.5,0.2096]
[1759696871823,0.7566,4505.6,4505.5,0.4326]
[1759696872127,1.15602,4505.6,4505.5,0.4326]
[1759696872525,1.15602,4505.6,4505.5,0.43439193]
[1759696873825,0.3214,4505.6,4505.5,0.84309193]
[1759696874020,0.2222,4506.3,4506.2,0.209]
[1759696874328,1.15595,4506.3,4506.2,0.6416]
[1759696874717,1.15595,4506.3,4506.2,0.4326]
[1759696876028,1.15595,4506.3,4506.2,0.223]
[1759696878424,0.1332,4506.0,4505.9,3.2078]
[1759696878625,1.27219,4506.0,4505.9,0.223]
[1759696879130,0.8728,4506.0,4505.9,0.4363]
[1759696879323,0.8728,4506.0,4505.9,0.2133]
[1759696879521,0.8728,4506.0,4505.9,0.4363]
[1759696881031,0.8728,4506.0,4505.9,0.8474]
[1759696881229,0.4431,4506.0,4505.9,0.8474]
[1759696881529,0.6625,4506.0,4505.9,0.8474]
[1759696882826,0.6625,4506.0,4505.9,0.6483]
[1759696883026,0.6625,4506.0,4505.9,0.8474]
[1759696883225,0.6625,4506.0,4505.9,0.6483]
[1759696883633,0.8728,4506.0,4505.9,0.6483]
[1759696884731,0.6625,4506.0,4505.9,4.0552]
[1759696884920,0.4431,4506.0,4505.9,4.0552]
[1759696887336,0.6625,4506.0,4505.9,0.8474]
[1759696887732,0.6625,4506.0,4505.9,0.6483]
[1759696888032,0.8728,4506.0,4505.9,0.6483]
[1759696890037,0.8728,4506.0,4505.9,0.8474]
[1759696890936,0.8728,4506.0,4505.9,0.6483]
[1759696891634,0.3099,4506.0,4505.9,0.8474]
[1759696891832,0.39936,4506.3,4505.9,0.6483]
[1759696892025,0.5293,4506.2,4506.1,0.6244]
[1759696892225,0.5293,4506.2,4506.1,0.4253]
[1759696892629,0.7396,4506.2,4506.1,0.4253]